bitfinex-derivatives/quotes_ETHF0:USTF0_20250816
["timestamp","ask_amount","ask_price","bid_price","bid_amount"]
[1755380983717,0.21830472,4423.5,4423.4,1.435]
[1755381000435,1.01250472,4423.5,4423.4,1.435]
[1755381001229,0.21830472,4423.5,4423.4,1.435]
[1755381001936,0.63120472,4423.5,4423.4,1.435]
[1755381002136,1.01250472,4423.5,4423.4,1.435]
[1755381002431,1.01250472,4423.5,4423.4,1.0745]
[1755381002635,1.27330472,4423.5,4423.1,3.2078]
[1755381002838,0.4129,4423.3,4423.2,0.5162]
[1755381003033,1.055,4423.3,4423.2,0.8451]
[1755381003240,1.055,4423.3,4423.2,1.474]
[1755381004833,0.4129,4422.8,4422.7,1.474]
[1755381005034,0.7942,4422.8,4422.7,21.981]
[1755381005631,0.7942,4422.8,4422.7,1.474]
[1755381005838,1.055,4422.8,4422.7,21.981]
[1755381007140,0.7942,4422.8,4422.7,21.3521]
[1755381007638,0.7942,4422.8,4422.7,0.8451]
[1755381007842,0.7942,4422.8,4422.7,21.3501]
[1755381009535,0.7942,4422.8,4422.7,21.6126]
[1755381009938,0.4129,4422.8,4422.7,21.977]
[1755381010143,0.3813,4423.2,4422.7,21.977]
[1755381010444,0.60036449,4423.1,4422.9,0.5162]
[1755381010742,0.21906449,4423.0,4422.9,0.5162]
[1755381012138,0.21906449,4423.0,4422.9,0.8451]
[1755381015044,0.46386449,4423.0,4422.9,1.474]
[1755381015642,0.21906449,4423.0,4422.9,1.474]
[1755381017051,1.01326449,4423.0,4422.9,1.474]
[1755381017243,0.21906449,4423.0,4422.9,21.972]
[1755381018041,0.21906449,4423.0,4422.9,21.3431]
[1755381018255,1.01326449,4423.0,4422.9,21.1794]
[1755381019039,1.01326449,4423.0,4422.9,21.3515]
[1755381019750,1.01326449,4423.0,4422.9,21.616]
[1755381019949,1.01326449,4423.0,4422.9,21.9861]
[1755381020550,1.01309837,4423.0,4422.9,21.9861]
[1755381026454,1.01312258,4423.0,4422.9,21.9861]
[1755381037176,0.2512,4422.9,4421.9,1.81023256]
[1755381037378,0.2512,4422.9,4420.7,3.2078]
[1755381037379,0.0226,4421.9,4420.7,3.2078]
[1755381037568,1.21521946,4420.9,4420.8,20.59]
[1755381037870,0.84200102,4420.9,4420.8,20.59]
[1755381038068,0.84200102,4420.9,4420.2,3.5512]
[1755381038374,0.84200102,4420.8,4420.3,20.7621]
[1755381038671,4.04980102,4420.7,4420.3,21.5576]
[1755381038972,0.84200102,4420.6,4420.3,21.5576]
[1755381039172,0.21892258,4420.5,4420.3,20.59]
[1755381039373,0.21892258,4420.4,4420.3,20.8504]
[1755381039568,0.21892258,4420.6,4420.3,20.8504]
[1755381039775,0.21892258,4420.5,4420.4,20.591]
[1755381039970,0.21892258,4420.6,4420.4,20.591]
[1755381040174,0.21892258,4420.6,4420.5,20.598]
[1755381044281,3.2078,4420.7,4420.5,20.598]
[1755381044479,0.22589115,4422.4,4418.5,0.2604]
[1755381044480,3.2078,4420.2,4418.5,0.2604]
[1755381044787,3.2078,4418.6,4417.5,0.2604]
[1755381044970,3.2078,4417.7,4417.6,5.931]
[1755381045169,3.44189406,4417.7,4417.6,20.9274]
[1755381046081,3.44189406,4417.7,4417.6,0.2604]
[1755381046276,3.44189406,4417.7,4417.6,20.9254]
[1755381046679,3.44189406,4417.7,4417.6,21.0975]
[1755381046979,3.44189406,4417.7,4417.6,21.3474]
[1755381048181,3.44189406,4417.7,4417.6,0.6824]
[1755381048384,3.44189406,4417.7,4417.6,21.3544]
[1755381048588,3.44189406,4417.7,4417.6,0.6824]
[1755381048781,3.44189406,4417.7,4417.6,21.3484]
[1755381049283,4.08077606,4417.7,4417.6,20.9254]
[1755381049480,4.08077606,4417.7,4417.6,0.2604]
[1755381049687,4.08077606,4417.7,4417.6,20.9254]
[1755381050684,4.08077606,4417.7,4417.6,0.2604]
[1755381050882,4.08077606,4417.7,4417.6,20.9234]
[1755381051284,4.08077606,4417.7,4417.6,0.2604]
[1755381052683,3.847582,4417.7,4417.6,0.2604]
[1755381052883,4.07930139,4417.7,4417.6,0.2604]
[1755381055294,4.07930139,4417.7,4417.6,0.5084]
[1755381057986,4.07930139,4417.7,4417.1,0.10187564]
[1755381058196,3.212,4417.2,4417.1,0.35587564]
[1755381058494,4.07974977,4417.2,4417.1,0.10187564]
[1755381058890,4.07974977,4417.2,4417.1,0.35587564]
[1755381059291,4.07974977,4417.2,4417.1,0.60387564]
[1755381059493,4.07974977,4417.2,4417.1,1.58217564]
[1755381059690,4.07554977,4417.2,4417.1,1.58217564]
[1755381060498,2.74454977,4417.2,4417.1,1.58217564]
[1755381060698,2.246582,4417.2,4417.1,1.58217564]
[1755381062198,2.47870718,4417.2,4417.1,1.58217564]
[1755381064697,3.68133018,4417.2,4417.1,1.58217564]
[1755381065201,2.47870718,4417.2,4417.1,1.58217564]
[1755381065396,2.47870718,4417.2,4417.1,22.23017564]
[1755381065996,2.47870718,4417.2,4417.1,22.22817564]
[1755381066197,4.08220452,4417.2,4417.1,22.22817564]
[1755381066399,4.51840452,4417.2,4417.1,22.22817564]
[1755381066595,4.68617023,4417.2,4417.1,0.94047564]
[1755381066795,4.08377023,4417.2,4417.1,1.58217564]
[1755381067195,2.48027289,4417.2,4417.1,0.35976656]
[1755381067400,2.72647289,4417.2,4417.1,20.645]
[1755381067595,3.78767289,4417.2,4417.1,20.645]
[1755381067797,3.78767289,4417.2,4417.1,20.9943]
[1755381068001,3.78767289,4417.2,4417.1,21.2356]
[1755381068207,3.78767289,4417.2,4417.1,21.4896]
[1755381069405,3.95387289,4417.2,4417.1,20.64]
[1755381070000,3.95387289,4417.2,4417.1,20.8145]
[1755381070402,3.95387289,4417.2,4417.1,19.6783864]
[1755381070802,3.95387289,4417.2,4417.1,1.1133]
[1755381071107,3.95387289,4417.2,4417.1,21.7503]
[1755381072208,5.56319854,4417.2,4417.1,22.0043]
[1755381072610,5.55892801,4417.2,4417.1,22.0043]
[1755381073297,2.47600236,4417.2,4417.1,22.0043]
[1755381073905,4.08997187,4417.2,4417.1,22.0043]
[1755381074306,2.47600236,4417.2,4417.1,22.0043]
[1755381075907,2.47600236,4417.2,4417.1,1.3673]
[1755381076212,2.47600236,4417.2,4417.1,21.9953]
[1755381077308,2.08001741,4417.2,4417.1,25.4478]
[1755381077612,0.39890236,4417.2,4417.1,25.4674]
[1755381077803,0.169482,4417.2,4417.1,25.4674]
[1755381078208,0.169482,4417.2,4417.1,28.6752]
[1755381078407,0.1,4418.2,4418.0,0.4524]
[1755381078610,0.1,4418.2,4418.1,20.642]
[1755381079103,0.3598,4418.2,4418.1,20.642]
[1755381082412,0.1,4418.2,4418.1,20.642]
[1755381084909,0.1,4418.2,4418.1,23.642]
[1755381085211,0.1,4418.2,4418.1,20.642]
[1755381088020,0.1,4418.2,4418.1,23.8498]
[1755381091020,0.1,4418.2,4418.1,23.8478]
[1755381093221,0.1,4418.2,4418.1,26.8478]
[1755381099030,0.3598,4418.2,4418.1,26.8478]
[1755381101027,0.1,4418.2,4418.1,26.8478]
[1755381101527,0.1,4418.2,4418.1,23.8478]
[1755381102129,0.1,4418.2,4418.1,26.8315442]
[1755381103228,0.1,4418.2,4418.1,28.86673242]
[1755381105332,0.1,4418.2,4418.1,26.8315442]
[1755381108331,0.3598,4418.2,4418.1,26.7935442]
[1755381109033,0.1,4418.2,4418.1,26.7935442]
[1755381109634,0.1,4418.2,4418.1,6.1915442]
[1755381109834,0.1,4418.2,4418.1,26.7935442]
[1755381110034,0.3451,4418.2,4418.1,26.7935442]
[1755381110530,0.3451,4418.2,4418.1,6.1915442]
[1755381110735,0.3451,4418.2,4418.1,26.7885442]
[1755381112536,0.3451,4418.2,4418.1,29.6119152]
[1755381113732,0.1,4418.2,4418.1,29.6119152]
[1755381113933,0.3451,4418.2,4418.1,29.6059152]
[1755381114129,1.0261,4418.2,4418.1,9.0149152]
[1755381114336,1.5685,4418.2,4418.1,29.6049152]
[1755381114733,1.5685,4418.2,4418.1,9.0149152]
[1755381115040,1.5685,4418.2,4418.1,29.6039152]
[1755381115339,1.5685,4418.2,4418.1,23.7968]
[1755381116940,1.5685,4418.2,4418.1,3.2078]
[1755381117135,1.5685,4418.2,4418.1,56.3808]
[1755381117541,1.5685,4418.2,4418.1,35.7928]
[1755381117840,1.5685,4418.2,4418.1,56.3918]
[1755381118040,1.5685,4418.2,4418.1,35.7928]
[1755381118240,1.5685,4418.2,4418.1,56.3918]
[1755381118441,1.5685,4418.2,4418.1,56.3908]
[1755381118643,1.5685,4418.2,4418.1,35.7928]
[1755381119343,1.5685,4418.2,4418.1,59.213171]
[1755381120438,0.3451,4418.2,4418.1,59.213171]
[1755381120632,1.2234,4419.1,4419.0,0.6251]
[1755381120840,0.2478,4419.1,4419.0,21.2221]
[1755381121039,3.4556,4419.4,4419.3,0.45227]
[1755381121238,4.4312,4419.4,4419.3,21.22407]
[1755381121439,4.4312,4419.4,4419.3,20.7718]
[1755381122039,4.4312,4419.4,4419.3,20.599]
[1755381122643,4.6763,4419.4,4419.3,20.599]
[1755381125648,0.6204,4419.3,4418.9,2.48593677]
[1755381125849,1.4685,4419.1,4419.0,20.59]
[1755381126544,0.6003,4419.1,4418.9,2.48593677]
[1755381126741,0.6003,4419.1,4419.0,20.589]
[1755381126939,0.6003,4419.1,4419.0,20.588]
[1755381127145,0.6003,4419.1,4419.0,20.587]
[1755381127445,1.4685,4419.1,4419.0,20.587]
[1755381127645,0.8481,4419.1,4418.9,2.03362677]
[1755381127853,1.4685,4419.0,4418.9,2.03362677]
[1755381128146,1.4685,4419.0,4418.9,22.61962677]
[1755381130351,1.4685,4419.0,4418.9,20.586]
[1755381131353,0.4929,4419.0,4418.9,20.586]
[1755381131554,1.4685,4419.0,4418.9,20.7588]
[1755381131949,1.4685,4419.0,4418.9,20.586]
[1755381133054,0.6003,4419.0,4418.8,0.45232]
[1755381133245,1.4685,4418.9,4418.8,0.45232]
[1755381133447,1.4685,4418.9,4418.8,21.02832]
[1755381134854,1.4685,4418.9,4418.8,53.61032]
[1755381136550,0.4929,4419.3,4418.8,53.61032]
[1755381136751,1.4685,4419.1,4419.0,2.03349758]
[1755381136952,3.2078,4419.4,4419.0,22.60549758]
[1755381137261,0.8454,4419.1,4419.0,23.05779758]
[1755381137561,1.4685,4419.1,4419.0,23.23059758]
[1755381137750,1.0932,4419.1,4419.0,23.47519758]
[1755381138150,1.0932,4419.1,4419.0,23.23059758]
[1755381138761,0.4929,4419.1,4419.0,23.23059758]
[1755381139056,0.2451,4419.1,4419.0,23.23059758]
[1755381139250,0.2451,4419.1,4419.0,23.47539758]
[1755381139452,4.688,4419.4,4419.3,0.1759]
[1755381139653,4.688,4419.4,4419.3,20.7619]
[1755381139856,1.4802,4419.4,4419.3,20.7619]
[1755381149966,0.2587,4419.7,4419.3,21.21416]
[1755381150167,0.253,4419.7,4419.3,21.21416]
[1755381150366,0.253,4419.6,4419.3,21.21416]
[1755381150569,0.2587,4419.5,4419.3,21.21416]
[1755381150768,0.2587,4419.4,4419.3,21.21416]
[1755381150968,0.9297,4419.4,4419.3,21.21416]
[1755381151167,1.4795,4419.4,4419.3,21.21416]
[1755381151466,1.4795,4419.4,4419.3,21.19616]
[1755381153372,1.4795,4419.4,4419.3,20.7439]
[1755381153571,1.4795,4419.4,4419.3,20.568]
[1755381154870,1.4795,4419.4,4419.3,20.7439]
[1755381155572,1.4795,4419.4,4419.3,20.568]
[1755381158177,1.4795,4419.4,4419.3,22.60260744]
[1755381159470,3.7195,4420.1,4419.3,23.05486744]
[1755381159670,0.5932,4419.4,4419.3,23.23076744]
[1755381160074,1.4795,4419.4,4419.3,23.23076744]
[1755381165382,1.4795,4419.4,4419.3,22.77850744]
[1755381166390,1.4795,4419.4,4419.3,20.7439]
[1755381166985,1.4795,4419.4,4419.3,20.7259]
[1755381173191,1.4795,4419.4,4419.3,0.1759]
[1755381173385,1.4795,4419.4,4419.3,20.7199]
[1755381180291,1.4795,4419.4,4419.3,20.544]
[1755381180491,1.4688,4419.3,4419.2,32.58]
[1755381180686,1.4688,4419.3,4419.2,2.03534458]
[1755381180881,1.4688,4419.3,4419.2,1.63654458]
[1755381181081,1.4688,4419.3,4419.2,22.18054458]
[1755381183498,1.4688,4419.2,4419.1,3.2078]
[1755381183993,1.4688,4419.2,4419.1,23.7518]
[1755381184596,1.4688,4419.2,4419.1,3.2078]
[1755381184795,1.4688,4419.2,4419.1,23.7518]
[1755381186189,0.5062,4419.2,4419.1,23.7518]
[1755381186395,1.4688,4419.2,4419.1,23.7518]
[1755381187592,1.4688,4419.2,4419.1,3.2078]
[1755381187898,0.599,4418.7,4418.6,6.444971]
[1755381188196,1.4688,4418.7,4418.6,26.575171]
[1755381188397,1.4688,4418.7,4418.6,23.7518]
[1755381188895,1.4688,4418.7,4418.6,24.3123]
[1755381191087,1.4688,4418.7,4418.6,23.7518]
[1755381191291,1.4688,4418.7,4418.6,25.78550163]
[1755381192800,1.4688,4418.7,4418.6,5.24150163]
[1755381192995,1.4688,4418.7,4418.6,25.78550163]
[1755381195001,1.4688,4418.7,4418.6,25.95890163]
[1755381195602,1.4688,4418.7,4418.6,26.34600163]
[1755381197502,1.4688,4418.7,4418.6,5.24150163]
[1755381197811,1.4688,4418.7,4418.6,20.544]
[1755381198018,1.4688,4418.7,4418.6,22.57770163]
[1755381198415,1.4688,4418.7,4418.6,22.75110163]
[1755381198621,1.4688,4418.7,4418.6,23.13820163]
[1755381199718,1.4688,4418.7,4418.6,23.37860163]
[1755381203017,1.4688,4418.7,4418.6,2.03370163]
[1755381203322,1.4688,4418.7,4418.6,20.544]
[1755381203518,1.4688,4418.7,4418.6,20.9564]
[1755381203715,1.4688,4418.7,4418.6,20.544]
[1755381204422,0.599,4418.7,4418.6,20.544]
[1755381204925,0.599,4418.7,4418.5,2.03370163]
[1755381205525,1.4889,4418.5,4418.4,2.03370163]
[1755381205721,1.4889,4418.5,4418.4,22.57770163]
[1755381207022,1.4889,4418.5,4418.4,2.03370163]
[1755381207226,1.4889,4418.5,4418.4,22.57770163]
[1755381207421,1.4889,4418.5,4418.4,2.03370163]
[1755381207726,1.4889,4418.5,4418.4,22.57770163]
[1755381208220,1.4889,4418.5,4418.4,2.03370163]
[1755381208421,1.4889,4418.5,4418.4,22.57770163]
[1755381209726,1.4889,4418.5,4418.4,22.96290163]
[1755381210326,1.4889,4418.5,4418.4,23.37530163]
[1755381210926,1.4889,4418.5,4418.4,21.3416]
[1755381211628,1.4889,4418.5,4418.4,20.9564]
[1755381212323,0.9175,4418.4,4418.1,5.24150163]
[1755381212528,1.4889,4418.2,4418.1,3.2078]
[1755381212828,1.4889,4418.2,4418.1,24.137]
[1755381215534,1.4889,4418.2,4418.1,23.7518]
[1755381216330,1.4889,4418.2,4418.1,24.3027]
[1755381217328,1.4889,4418.2,4418.1,24.5494]
[1755381217731,1.4889,4418.2,4418.1,3.6202]
[1755381217932,1.4889,4418.2,4418.1,24.1652]
[1755381218430,1.4889,4418.2,4418.1,24.5504]
[1755381223034,1.4889,4418.2,4418.1,21.3426]
[1755381223933,1.4889,4418.2,4418.1,0.7976]
[1755381224136,1.4889,4418.2,4418.1,21.3426]
[1755381225034,1.4889,4418.2,4418.1,0.4124]
[1755381225235,1.4889,4418.2,4418.0,2.03370163]
[1755381225430,1.093,4418.2,4418.0,2.03370163]
[1755381225635,0.5714,4418.1,4417.7,2.03370163]
[1755381225834,0.5714,4417.9,4417.8,20.544]
[1755381226031,1.4889,4417.9,4417.8,20.544]
[1755381226533,1.4889,4417.9,4417.8,20.9292]
[1755381226729,1.4889,4417.9,4417.8,21.0949]
[1755381228634,1.4889,4417.9,4417.6,2.03370163]
[1755381228838,1.4735,4417.8,4417.7,21.1072]
[1755381229139,1.4735,4417.8,4417.7,21.3648]
[1755381229334,1.4735,4417.8,4417.5,2.03370163]
[1755381229633,1.2213,4417.6,4417.5,2.85450163]
[1755381229938,1.4735,4417.6,4417.5,23.39950163]
[1755381230434,1.4735,4417.6,4417.5,2.20180163]
[1755381230636,1.4735,4417.6,4417.5,20.7131]
[1755381230844,1.4735,4417.6,4417.5,21.1082]
[1755381231046,1.4735,4417.6,4417.5,20.9401]
[1755381231836,1.4735,4417.6,4417.5,21.1082]
[1755381232434,1.4735,4417.6,4417.4,5.24150163]
[1755381232641,1.4735,4417.6,4417.5,20.545]
[1755381232934,1.4735,4417.6,4417.5,20.9401]
[1755381233944,1.4735,4417.6,4417.5,0.3951]
[1755381234144,1.4735,4417.6,4417.5,20.9401]
[1755381234642,1.4735,4417.6,4417.5,0.5632]
[1755381234839,1.4735,4417.6,4417.5,21.1082]
[1755381235244,1.4735,4417.6,4417.5,21.3658]
[1755381235843,1.4735,4417.6,4417.5,20.9707]
[1755381236346,1.4735,4417.6,4417.5,0.4257]
[1755381236549,1.4735,4417.6,4417.5,20.9707]
[1755381236747,1.4735,4417.6,4417.5,21.3658]
[1755381238149,1.4735,4417.6,4417.5,0.8208]
[1755381238346,1.4735,4417.6,4417.5,21.3658]
[1755381239948,1.4735,4417.6,4417.5,0.8208]
[1755381240149,1.4735,4417.6,4417.5,21.3658]
[1755381240345,1.4735,4417.6,4417.5,21.6104]
[1755381240544,1.1062,4417.6,4417.5,21.6104]
[1755381240750,1.4735,4417.6,4417.5,1.0654]
[1755381241049,1.4735,4417.6,4417.5,21.6104]
[1755381241951,1.4735,4417.6,4417.5,0.8208]
[1755381242152,1.4735,4417.6,4417.5,21.3648]
[1755381250154,1.4735,4417.6,4417.5,0.8208]
[1755381250350,1.4735,4417.6,4417.5,20.7121]
[1755381250544,1.4735,4417.6,4417.5,21.3648]
[1755381250949,1.4735,4417.6,4417.5,0.8208]
[1755381251146,0.8828,4417.5,4417.2,2.42880163]
[1755381251354,0.859,4417.4,4417.3,21.3638]
[1755381251955,1.1062,4417.4,4417.3,21.3638]
[1755381252156,1.4735,4417.4,4417.3,0.4257]
[1755381252351,1.4735,4417.4,4417.3,21.3638]
[1755381253452,0.6846,4417.4,4417.3,21.6088]
[1755381253956,0.859,4417.4,4417.3,21.6088]
[1755381254457,0.859,4417.4,4417.3,21.3638]
[1755381255256,1.1062,4417.4,4417.3,23.39750163]
[1755381256251,0.2633,4418.2,4418.1,0.2576]
[1755381256455,3.2078,4418.3,4418.2,0.8208]
[1755381256655,3.2078,4418.3,4418.2,1.0658]
[1755381260255,4.2891,4418.3,4418.2,0.8208]
[1755381260459,0.5928,4417.9,4417.8,0.7733]
[1755381260655,1.4742,4417.9,4417.8,21.3143]
[1755381263063,0.5928,4417.9,4417.7,5.24150163]
[1755381263264,0.5928,4417.9,4417.8,20.541]
[1755381263964,1.4742,4417.9,4417.8,21.0623]
[1755381264153,1.4742,4417.9,4417.8,21.3133]
[1755381264361,1.4742,4417.9,4417.8,20.54]
[1755381265557,1.4742,4417.9,4417.7,5.24150163]
[1755381265861,0.5928,4417.9,4417.8,20.54]
[1755381266459,1.4742,4417.9,4417.8,20.54]
[1755381267565,1.4742,4417.8,4417.7,3.9811]
[1755381267765,1.4742,4417.8,4417.7,24.5201]
[1755381268466,1.4742,4417.8,4417.7,23.7468]
[1755381269667,1.4742,4417.8,4417.7,23.9097]
[1755381270166,1.4742,4417.8,4417.7,3.3707]
[1755381270364,1.4742,4417.8,4417.7,23.9097]
[1755381270870,1.4742,4417.8,4417.7,24.1607]
[1755381271068,1.4742,4417.8,4417.7,24.5201]
[1755381272264,1.4742,4417.8,4417.7,3.3707]
[1755381272469,1.4742,4417.8,4417.7,3.2078]
[1755381272663,1.4742,4417.8,4417.7,23.7458]
[1755381272862,1.4742,4417.8,4417.7,24.1597]
[1755381273062,1.4742,4417.8,4417.7,24.5191]
[1755381275470,1.4742,4417.8,4417.7,26.55280163]
[1755381284274,3.2078,4418.3,4417.7,26.55280163]
[1755381284576,0.5928,4417.8,4417.7,26.55280163]
[1755381284876,1.0944,4417.8,4417.7,26.19340163]
[1755381285175,1.0944,4417.8,4417.7,26.55280163]
[1755381285373,1.0944,4417.8,4417.7,24.5191]
[1755381288175,1.0944,4417.8,4417.7,3.9811]
[1755381288377,1.4742,4417.8,4417.7,24.5151]
[1755381290279,3.4533,4418.3,4417.7,24.5151]
[1755381290480,0.5099,4418.1,4417.8,2.41644958]
[1755381290675,0.9908,4418.1,4418.0,0.1752]
[1755381290982,0.9908,4418.1,4418.0,0.555]
[1755381291182,1.5007,4418.1,4418.0,0.555]
[1755381292586,1.5007,4418.1,4418.0,0.1752]
[1755381300180,0.5099,4418.1,4418.0,0.4359]
[1755381300381,0.8501,4418.1,4417.8,2.03664958]
[1755381300584,1.5007,4417.9,4417.8,2.03664958]
[1755381300887,1.5007,4417.9,4417.8,22.56764958]
[1755381302280,1.5007,4417.9,4417.8,2.03664958]
[1755381302487,1.5007,4417.9,4417.8,22.56764958]
[1755381303086,1.5007,4417.9,4417.8,2.03664958]
[1755381303288,1.5007,4417.9,4417.8,22.56664958]
[1755381303495,1.5007,4417.8,4417.7,2.03664958]
[1755381303681,1.5007,4417.8,4417.7,22.56664958]
[1755381305386,1.5007,4417.8,4417.7,23.12164958]
[1755381308488,1.5007,4417.8,4417.7,23.12064958]
[1755381309487,1.5007,4417.8,4417.7,2.59164958]
[1755381309689,1.5007,4417.8,4417.7,23.12064958]
[1755381310587,1.5007,4417.8,4417.7,22.74084958]
[1755381312586,4.7085,4417.8,4417.7,22.56564958]
[1755381312791,4.7085,4417.8,4417.7,20.529]
[1755381313792,0.9068,4417.7,4417.5,2.41644958]
[1755381313985,1.5007,4417.6,4417.5,2.47254958]
[1755381314187,1.5007,4417.6,4417.5,23.00054958]
[1755381315694,1.5007,4417.6,4417.5,0.4359]
[1755381315891,1.5007,4417.6,4417.5,20.9629]
[1755381316488,1.5007,4417.6,4417.5,21.3427]
[1755381317593,1.5007,4417.6,4417.2,2.03664958]
[1755381317795,0.5939,4417.4,4417.3,20.528]
[1755381317990,0.5939,4417.4,4417.3,20.7032]
[1755381317991,1.5007,4417.4,4417.3,20.7032]
[1755381318191,1.5007,4417.4,4417.3,21.083]
[1755381319399,1.4465,4417.2,4417.1,0.10187564]
[1755381319597,4.6543,4417.2,4417.1,20.62887564]
[1755381323003,4.6543,4417.2,4417.1,0.10187564]
[1755381323298,4.6543,4417.2,4417.1,20.62987564]
[1755381324008,4.6543,4417.2,4417.1,0.10187564]
[1755381324301,4.6543,4417.2,4417.1,20.62987564]
[1755381325495,4.6543,4417.2,4417.1,0.10187564]
[1755381328508,0.3421,4415.9,4415.8,0.6859]
[1755381328804,1.2067,4415.9,4415.8,21.2149]
[1755381329100,1.2067,4415.9,4415.8,21.6007]
[1755381329497,1.2067,4415.9,4415.8,1.0717]
[1755381329701,1.2067,4415.9,4415.8,21.6007]
[1755381330003,0.2398,4416.2,4415.9,0.2586]
[1755381330199,0.2398,4416.2,4416.1,0.8131]
[1755381330402,0.2398,4416.2,4416.1,21.3431]
[1755381330601,0.5819,4416.2,4416.1,21.3431]
[1755381330796,0.8258,4416.2,4416.1,21.3431]
[1755381333107,0.8258,4416.2,4416.1,0.8131]
[1755381333407,0.8258,4416.2,4416.1,21.3421]
[1755381336009,1.0656,4416.2,4416.1,21.3421]
[1755381336307,1.4465,4416.2,4416.1,21.3421]
[1755381341310,0.1665,4415.8,4415.7,3.6351]
[1755381341510,0.4063,4415.8,4415.7,24.8095]
[1755381342015,0.6502,4415.8,4415.7,24.2926]
[1755381342211,1.4465,4415.8,4415.7,24.2926]
[1755381342412,1.4465,4415.8,4415.7,21.3431]
[1755381344506,1.4465,4415.8,4415.7,0.8131]
[1755381344711,1.4465,4415.8,4415.7,21.3421]
[1755381346011,1.4465,4415.8,4415.7,0.8131]
[1755381346212,1.4465,4415.8,4415.7,21.3421]
[1755381351518,0.3399,4415.9,4415.8,1.048]
[1755381351818,1.2253,4415.9,4415.8,0.792]
[1755381352014,1.483,4415.9,4415.8,0.792]
[1755381352316,1.483,4415.9,4415.8,1.048]
[1755381353919,3.4501,4416.3,4415.8,1.048]
[1755381354115,0.8854,4416.2,4416.1,0.4211]
[1755381354316,1.483,4416.2,4416.1,21.576]
[1755381355219,1.483,4416.2,4416.1,21.32]
[1755381357321,1.483,4416.2,4416.1,20.527]
[1755381358216,1.483,4416.2,4416.1,20.704]
[1755381358419,1.483,4416.2,4416.1,21.0749]
[1755381359314,1.483,4416.2,4416.1,0.5479]
[1755381359521,1.483,4416.2,4416.1,21.0749]
[1755381360117,1.483,4416.2,4416.1,21.319]
[1755381361023,0.8854,4416.1,4415.5,2.03664958]
[1755381361223,0.8854,4416.0,4415.6,20.527]
[1755381361424,0.8854,4416.2,4415.6,20.527]
[1755381361625,0.6431,4416.2,4415.6,20.527]
[1755381361820,0.2423,4416.1,4415.6,20.527]
[1755381362020,0.3964,4416.0,4415.7,0.3709]
[1755381362227,1.483,4415.9,4415.8,20.526]
[1755381362825,1.483,4415.9,4415.8,20.703]
[1755381363221,1.483,4415.9,4415.8,21.0739]
[1755381364425,1.483,4415.9,4415.8,0.792]
[1755381364626,1.483,4415.9,4415.8,21.318]
[1755381365323,1.483,4415.9,4415.5,2.03664958]
[1755381365530,3.2078,4416.3,4415.6,21.317]
[1755381365726,0.5976,4415.8,4415.7,0.792]
[1755381365924,1.483,4415.8,4415.7,0.792]
[1755381366129,1.483,4415.8,4415.7,20.9461]
[1755381366832,1.483,4415.8,4415.7,21.317]
[1755381371325,1.483,4415.8,4415.7,21.316]
[1755381371531,1.483,4415.8,4415.7,20.9451]
[1755381372333,1.483,4415.8,4415.7,21.316]
[1755381376637,1.483,4415.8,4415.7,0.792]
[1755381376835,1.483,4415.8,4415.7,20.9441]
[1755381377138,1.483,4415.8,4415.7,21.315]
[1755381379034,1.483,4415.8,4415.7,21.314]
[1755381379442,1.483,4415.8,4415.7,0.792]
[1755381379740,1.483,4415.8,4415.7,21.314]
[1755381381142,1.483,4415.8,4415.7,0.177]
[1755381381343,1.483,4415.8,4415.7,20.522]
[1755381381541,4.6908,4415.8,4415.7,20.522]
[1755381382238,4.6908,4415.8,4415.7,21.0559]
[1755381382634,4.6908,4415.8,4415.7,20.522]
[1755381383034,3.8054,4415.8,4415.5,0.3663]
[1755381383243,1.4756,4415.7,4415.6,21.0559]
[1755381383742,1.4756,4415.7,4415.6,21.3111]
[1755381384045,1.4756,4415.7,4415.6,20.521]
[1755381385243,1.4756,4415.7,4415.6,21.0549]
[1755381385444,1.4756,4415.7,4415.6,20.6886]
[1755381386443,1.4756,4415.7,4415.6,21.0549]
[1755381388249,1.4756,4415.7,4415.6,21.0539]
[1755381388444,1.4756,4415.7,4415.6,0.5339]
[1755381388644,1.4756,4415.7,4415.6,20.6876]
[1755381389647,1.4756,4415.7,4415.6,21.0539]
[1755381391750,1.4756,4415.7,4415.6,0.7891]
[1755381391950,1.4756,4415.7,4415.6,21.3091]
[1755381392346,1.4756,4415.7,4415.6,0.7891]
[1755381392646,1.4756,4415.7,4415.6,21.3091]
[1755381393048,1.4756,4415.7,4415.6,0.7891]
[1755381393452,1.4756,4415.7,4415.6,21.3081]
[1755381394755,1.4756,4415.7,4415.1,2.03664958]
[1755381394756,0.9867,4415.7,4415.1,2.03664958]
[1755381394951,3.2078,4415.8,4415.3,0.3663]
[1755381395146,0.5963,4415.4,4415.3,0.7891]
[1755381395453,1.0852,4415.4,4415.3,1.0552]
[1755381395754,1.4756,4415.4,4415.3,1.0552]
[1755381397254,1.4756,4415.4,4415.3,0.7891]
[1755381397455,1.4756,4415.4,4415.3,1.0552]
[1755381398858,1.4756,4415.4,4415.3,0.7891]
[1755381399054,1.4756,4415.4,4415.3,21.3071]
[1755381399659,1.4756,4415.4,4415.3,21.5732]
[1755381402561,1.4756,4415.4,4415.3,1.0552]
[1755381402858,1.4756,4415.4,4415.3,21.5732]
[1755381403050,1.4756,4415.4,4415.3,1.0552]
[1755381403256,1.4756,4415.4,4415.3,21.5722]
[1755381403453,1.4756,4415.4,4415.3,1.0552]